fUSD/lending_fUSD_20240701
["ID","MTS","AMOUNT","RATE_DAILY","PERIOD"]
[330807950,1719813041697,-5751.94436489,0.0002249,3]
[330807951,1719813041709,-2506.77543946,0.0002249,3]
[330807952,1719813041720,-7969.17193469,0.0002249,3]
[330807953,1719813041731,-3386.27530717,0.0002249,3]
[330807954,1719813041747,-939.46473459,0.0002249,3]
[330807955,1719813041844,-155.0,0.00022191,2]
[330807956,1719813041854,-504.5993894,0.00022485,2]
[330807957,1719813041863,-440.3325244,0.00022485,2]
[330807958,1719813041872,-376.0656593,0.00022485,2]
[330807959,1719813041882,-311.7987943,0.00022485,2]
[330807960,1719813041891,-145382.20807934,0.0002249,3]
[330807961,1719813041921,-6277.41954857,0.00022068,2]
[330807962,1719813041930,-247.5319293,0.00022485,2]
[330807963,1719813041940,-7467.8757472,0.0002249,3]
[330807964,1719813041950,-153.68,0.0002249,2]
[330807965,1719813041961,-184.60793833,0.0002249,2]
[330807966,1719813041970,-153.68,0.0002249,2]
[330807967,1719813041980,-153.68,0.0002249,2]
[330807968,1719813041989,-800.0,0.00022493,2]
[330807969,1719813042000,-195.56371829,0.00022499,2]
[330807970,1719813042010,-1000.0,0.00022499,2]
[330807971,1719813042020,-1000.0,0.00022499,2]
[330807972,1719813042030,-1000.0,0.00022499,2]
[330807973,1719813042041,-1000.0,0.00022499,2]
[330807974,1719813042051,-1000.0,0.00022499,2]
[330807975,1719813042212,-1004.1766,0.00022499,2]
[330807976,1719813042221,-1000.0,0.00022499,2]
[330807977,1719813042230,-1000.0,0.00022499,2]
[330807978,1719813042239,-1000.0,0.00022499,2]
[330807979,1719813042248,-1000.0,0.00022499,2]
[330807980,1719813042258,-1000.0,0.00022499,2]
[330807981,1719813042267,-1250.76,0.00022499,4]
[330807982,1719813042276,-1250.76,0.00022499,4]
[330807983,1719813042286,-1250.76,0.00022499,4]
[330807984,1719813042298,-1250.76,0.00022499,4]
[330807985,1719813042311,-1250.76,0.00022499,4]
[330807986,1719813042324,-1250.76,0.00022499,4]
[330807987,1719813042342,-1250.76,0.00022499,4]
[330807988,1719813042350,-1250.76,0.00022499,4]
[330807989,1719813042358,-1250.76,0.00022499,4]
[330807990,1719813042367,-1250.76,0.00022499,4]
[330807991,1719813042376,-1250.76,0.00022499,4]
[330807992,1719813042385,-1250.76,0.00022499,4]
[330807993,1719813042394,-1250.76,0.00022499,4]
[330807994,1719813042404,-1250.76,0.00022499,4]
[330807995,1719813042413,-1250.76,0.00022499,4]
[330807996,1719813042423,-1250.76,0.00022499,4]
[330807997,1719813042432,-1250.76,0.00022499,4]
[330807998,1719813042442,-1250.76,0.00022499,4]
[330807999,1719813042451,-1250.93351926,0.00022499,4]
[330808000,1719813042462,-131216.51017025,0.000225,7]
[330808001,1719813042474,-124441.39469361,0.000225,7]
[330808002,1719813042491,-755.0,0.00016808,2]
[330808003,1719813042504,-4245.0,0.00016808,2]
[330808004,1719813042514,-647707.7131847,0.000225,7]
[330808005,1719813042530,-300.0,0.00015579,2]
[330808006,1719813042542,-541.83254525,0.00015579,2]
[330808007,1719813042557,-498.62753763,0.00015579,2]
[330808008,1719813042566,-137.71857846,0.000225,7]
[330808009,1719813042577,-461.81999999,0.000225,7]
[330808010,1719813042588,-458.55501634,0.000225,7]
[330808011,1719813042599,-110055.2496953,0.000225,7]
[330808012,1719813043320,-3012.8580966,0.00015399,2]
[330808013,1719813043385,-1668.75700185,0.00015399,2]
[330808014,1719813043566,-698.35410067,0.00015399,2]
[330808015,1719813043576,-2426.55532304,0.00019067,2]
[330808016,1719813043588,-766.0415075,0.00019067,2]
[330808030,1719813046513,-497.75,0.00018899,2]
[330808031,1719813046768,-28.53304125,0.00018899,2]
[330808032,1719813046779,-1952.20310566,0.00019067,2]
[330808033,1719813046789,-182.07,0.00021918,2]
[330808034,1719813046798,-595.0,0.00022499,2]
[330808035,1719813046807,-3616.17928652,0.000225,7]
[330808043,1719813696822,-2600.0,0.000149,2]
[330808044,1719813702387,-2600.0,0.000149,2]
[330808045,1719813708932,-77.5685,0.000149,2]
[330808046,1719813708952,-3768.5956,0.000149,2]
[330808047,1719813736530,1153.8359,0.000149,2]
[330808049,1719814173469,1600.0,0.00012636,2]
[330808050,1719814175336,1600.0,0.00013458,2]
[330808059,1719814231713,-1600.0,0.0001428,2]
[330808060,1719814231723,-150.0,0.00014899,2]
[330808061,1719814231733,-18655.72015681,0.000149,2]
[330808062,1719814231742,-252.06125938,0.000149,2]
[330808063,1719814231753,-500.0,0.00015102,2]
[330808064,1719814231763,-600.0,0.00015102,2]
[330808065,1719814231772,-500.0,0.00015102,2]
[330808066,1719814231782,-500.0,0.00015102,2]
[330808067,1719814231793,-1600.0,0.00015102,2]
[330808068,1719814231803,-263.25,0.00016105,2]
[330808069,1719814231814,-500.0,0.00016746,2]
[330808070,1719814231824,-500.0,0.00016746,2]
[330808071,1719814231833,-1600.0,0.00016746,2]
[330808072,1719814231842,-227.0716558,0.00017259,2]
[330808073,1719814231852,-756.0,0.000175,2]
[330808074,1719814231861,-1217.54101305,0.00017829,2]
[330808076,1719814231871,-960.61382337,0.00017829,2]
[330808077,1719814231879,-23880.0,0.00017833,2]
[330808078,1719814231888,-200.0,0.00017842,2]
[330808079,1719814231898,-500.0,0.00017842,2]
[330808080,1719814231907,-1600.0,0.00017842,2]
[330808081,1719814231916,-250.0,0.00017856,2]
[330808082,1719814231926,-286.57,0.00017875,2]
[330808083,1719814231935,-201.14453689,0.00017925,2]
[330808084,1719814231946,-1263.2464365,0.00017999,2]
[330808085,1719814231958,-19620.26394368,0.00017999,2]
[330808086,1719814231967,-430.47767915,0.00017999,2]
[330808087,1719814231977,-3030.74664147,0.00017999,2]
[330808088,1719814231985,-489.78,0.00018147,2]
[330808089,1719814231994,-150.0,0.00018195,2]
[330808090,1719814232003,-500.0,0.00018325,2]
[330808091,1719814232012,-250.0,0.00018333,2]
[330808092,1719814232021,-263.25,0.00018369,2]
[330808093,1719814232031,-273.26,0.00018379,2]
[330808094,1719814232040,-153.496,0.00018379,2]
[330808095,1719814232049,-190.74,0.00018435,2]
[330808096,1719814232059,-220.27,0.000185,2]
[330808097,1719814232069,-153.3118478,0.00018523,2]
[330808098,1719814232079,-1000.0,0.00018685,2]
[330808099,1719814232088,-680.7711192,0.00018759,2]
[330808100,1719814232097,-2559.04,0.00018849,30]
[330808101,1719814232107,-500.0,0.00018938,2]
[330808102,1719814232118,-1600.0,0.00018938,2]
[330808103,1719814232128,-153.31184782,0.00018962,2]
[330808104,1719814232137,-194.73255423,0.00019113,2]
[330808105,1719814232147,-250.0,0.00019178,2]
[330808106,1719814232156,-154.09,0.00019178,2]
[330808107,1719814232166,-526.70381718,0.00019229,2]
[330808108,1719814232180,-474.28975858,0.00019229,2]
[330808109,1719814232189,-153.496,0.00019344,2]
[330808110,1719814232201,-220.27,0.00019464,2]
[330808111,1719814232212,-154.00494617,0.00019539,2]
[330808112,1719814232222,-1000.0,0.00019899,2]
[330808113,1719814232231,-157.1032648,0.00019899,2]
[330808114,1719814232240,-2546.6624,0.000199,2]
[330808115,1719814232252,-24532.7292,0.000199,2]
[330808116,1719814232261,-334.85362564,0.000199,2]
[330808117,1719814232270,-160.20384159,0.00019934,2]
[330808118,1719814232279,-665.48570714,0.00019934,2]
[330808119,1719814232290,-2057.91997448,0.00019934,2]
[330808120,1719814232300,-232.69293554,0.0001999,2]
[330808121,1719814232309,-6008.0,0.0002,7]
[330808122,1719814232318,-251334.44885245,0.0002,7]
[330808123,1719814232331,-675.6676273,0.0002,7]
[330808124,1719814232355,-4095.57269695,0.0002,7]
[330808130,1719814237645,-2377.87728637,0.00017533,2]
[330808131,1719814237655,-594.12744724,0.00017533,2]
[330808132,1719814237668,-1657.22843273,0.00017533,2]
[330808133,1719814237679,-262.65011809,0.00017533,2]
[330808134,1719814237777,-777.16020434,0.00017533,2]
[330808135,1719814237789,-1026.6570653,0.00017533,2]
[330808136,1719814237800,-134.90312766,0.00017533,2]
[330808137,1719814237810,-782.39818459,0.00017566,2]
[330808138,1719814237898,-286.3073085,0.00017566,2]
[330808139,1719814237921,-221.7900275,0.00017566,2]
[330808140,1719814237933,-1815.29476908,0.00017566,2]
[330808141,1719814237942,-1028.93728939,0.00018717,2]
[330808142,1719814237953,-251685.45437145,0.0002,7]
[330808143,1719814237963,-4279.14032286,0.0002,15]
[330808144,1719814237972,-500.0,0.00020034,2]
[330808145,1719814237981,-1600.0,0.00020034,2]
[330808146,1719814237991,-154.09,0.0002005,2]
[330808147,1719814238000,-665.48570711,0.00020208,2]
[330808148,1719814238010,-2057.91997448,0.00020208,2]
[330808149,1719814238019,-150.0,0.00020244,2]
[330808150,1719814238028,-153.496,0.0002041,2]
[330808152,1719814238038,-665.48570711,0.00020482,2]
[330808154,1719814238048,-2057.91997448,0.00020482,2]
[330808156,1719814238057,-150.4251039,0.00020528,2]
[330808157,1719814238067,-5172.0,0.00020537,2]
[330808158,1719814238077,-5805.0,0.00020537,2]
[330808159,1719814238087,-263.25,0.00020633,2]
[330808160,1719814238096,-151.02465678,0.00020723,2]
[330808161,1719814238106,-800.0,0.0002074,2]
[330808162,1719814238115,-665.48570711,0.00020756,2]
[330808163,1719814238125,-2057.91997448,0.00020756,2]
[330808164,1719814238135,-157771.583303,0.000208,3]
[330808165,1719814238144,-57371.4848375,0.0002089,3]
[330808166,1719814238154,-300.0,0.000209,7]
[330808167,1719814238163,-154.94398227,0.00020913,2]
[330808168,1719814238176,-154.09,0.00020922,2]
[330808169,1719814238185,-14342.8712094,0.0002097,3]
[330808170,1719814238195,-800.0,0.00020986,2]
[330808171,1719814238205,-14342.8712094,0.0002099,3]
[330808172,1719814238215,-225.19167095,0.00021,2]
[330808173,1719814238224,-22972.84214495,0.00021,7]
[330808174,1719814238233,-1250.0,0.00021,2]
[330808175,1719814238243,-203.086046,0.00021,2]
[330808176,1719814238254,-600.0,0.00021,7]
[330808177,1719814238264,-1000.0,0.0002102,2]
[330808178,1719814238273,-665.48570711,0.0002103,2]
[330808179,1719814238282,-2057.91997448,0.0002103,2]
[330808180,1719814238291,-151.0,0.00021037,2]
[330808181,1719814238300,-800.0,0.00021041,2]
[330808182,1719814238309,-800.0,0.00021068,2]
[330808183,1719814238319,-14342.8712094,0.0002107,3]
[330808184,1719814238328,-194.3947301,0.0002108,2]
[330808185,1719814238337,-15555.4883211,0.0002108,2]
[330808186,1719814238347,-198.72193479,0.0002108,2]
[330808187,1719814238356,-900.0,0.000211,7]
[330808188,1719814238366,-500.0,0.0002113,2]
[330808189,1719814238375,-1600.0,0.0002113,2]
[330808190,1719814238384,-1300.0,0.000212,7]
[330808191,1719814238393,-153.41251732,0.0002129,2]
[330808192,1719814238402,-1600.0,0.000213,7]
[330808193,1719814238412,-665.48570711,0.00021304,2]
[330808194,1719814238420,-2057.91997448,0.00021304,2]
[330808195,1719814238429,-195.029219,0.0002137,2]
[330808196,1719814238439,-300.0,0.000214,7]
[330808197,1719814238447,-259.56316415,0.00021429,7]
[330808198,1719814238458,-151.02465678,0.00021491,2]
[330808199,1719814238467,-300.0,0.000215,7]
[330808200,1719814238476,-14342.8712094,0.00021558,3]
[330808201,1719814238485,-665.48570711,0.00021578,2]
[330808202,1719814238495,-2057.91997448,0.00021578,2]
[330808203,1719814238504,-153.496,0.00021591,2]
[330808204,1719814238512,-300.0,0.000216,7]
[330808205,1719814238522,-2500.0,0.000216,2]
[330808206,1719814238531,-196.0,0.000216,3]
[330808207,1719814238540,-163.43,0.00021644,2]
[330808208,1719814238549,-300.0,0.000217,7]
[330808209,1719814238558,-154.09,0.00021793,2]
[330808210,1719814238567,-686.0,0.000218,7]
[330808211,1719814238576,-158.61860173,0.00021837,2]
[330808212,1719814238585,-665.48570711,0.00021852,2]
[330808213,1719814238595,-2057.91997448,0.00021852,2]
[330808214,1719814238604,-2925.21,0.00021917,4]
[330808215,1719814238613,-2925.21,0.00021917,4]
[330808216,1719814238622,-2925.21,0.00021917,4]
[330808217,1719814238632,-2925.21,0.00021917,4]
[330808218,1719814238641,-3868.0,0.00021917,4]
[330808219,1719814238650,-3868.0,0.00021917,4]
[330808220,1719814238660,-3868.0,0.00021917,4]
[330808221,1719814238669,-3868.0,0.00021917,4]
[330808222,1719814238679,-3868.0,0.00021917,4]
[330808223,1719814238688,-4554.99,0.00021917,4]
[330808224,1719814238697,-4554.99,0.00021917,4]
[330808225,1719814238707,-4554.99,0.00021917,4]
[330808226,1719814238716,-4554.99,0.00021917,4]
[330808227,1719814238726,-3021.19,0.00021917,4]
[330808228,1719814238735,-3021.19,0.00021917,4]
[330808229,1719814238744,-2586.43,0.00021917,4]
[330808230,1719814238753,-2586.43,0.00021917,4]
[330808231,1719814238762,-2586.43,0.00021917,4]
[330808232,1719814238771,-2751.47,0.00021917,4]
[330808233,1719814238780,-2751.47,0.00021917,4]
[330808234,1719814238790,-2751.47,0.00021917,4]
[330808235,1719814238799,-2751.47,0.00021917,4]
[330808236,1719814238808,-499.97815209,0.00021917,4]
[330808237,1719814238816,-3087.78,0.00021917,4]
[330808238,1719814238826,-3087.78,0.00021917,4]
[330808239,1719814238835,-3940.09,0.00021917,4]
[330808240,1719814238844,-3940.09,0.00021917,4]
[330808241,1719814238853,-4303.24,0.00021917,4]
[330808242,1719814238862,-3940.09,0.00021917,4]
[330808243,1719814238871,-3940.09,0.00021917,4]
[330808244,1719814239075,-4303.24,0.00021917,4]
[330808245,1719814239091,-4303.24,0.00021917,4]
[330808246,1719814239102,-4303.24,0.00021917,4]
[330808247,1719814239111,-2797.79,0.00021917,4]
[330808248,1719814239122,-2797.79,0.00021917,4]
[330808249,1719814239132,-2797.79,0.00021917,4]
[330808250,1719814239142,-182.07,0.00021918,2]
[330808251,1719814239153,-1309.22,0.00021918,2]
[330808252,1719814239163,-155.0,0.00021976,2]
[330808253,1719814239173,-224.03664315,0.00021976,3]
[330808254,1719814239186,-711.38,0.00021994,2]
[330808255,1719814239196,-2018.30932762,0.00022068,2]
[330808256,1719814239209,-3171.8613027,0.00022068,2]
[330808257,1719814239219,-2018.30932762,0.00022068,2]
[330808258,1719814239230,-3171.8613027,0.00022098,2]
[330808259,1719814239245,-6277.41954857,0.00022098,2]
[330808260,1719814239255,-2000.0,0.000221,2]
[330808261,1719814239267,-665.48570711,0.00022126,2]
[330808262,1719814239278,-2057.91997448,0.00022126,2]
[330808263,1719814239288,-14342.8712094,0.00022134,3]
[330808264,1719814239298,-327.16438361,0.00022191,2]
[330808265,1719814239308,-195.029219,0.00022192,2]
[330808266,1719814239318,-159.57081907,0.00022199,2]
[330808267,1719814239327,-2000.0,0.000222,2]
[330808268,1719814239337,-867.54923149,0.00022211,2]
[330808269,1719814239347,-188.17121959,0.00022211,2]
[330808270,1719814239357,-400.0,0.00022226,2]
[330808271,1719814239367,-1600.0,0.00022226,2]
[330808272,1719814239376,-882.0,0.00022249,2]
[330808273,1719814239386,-3868.0,0.00022279,4]
[330808274,1719814239396,-180.29370685,0.0002229,2]
[330808275,1719814239406,-1619.6206656,0.000223,2]
[330808276,1719814239416,-500.0,0.00022319,2]
[330808277,1719814239425,-200.0,0.00022319,2]
[330808278,1719814239436,-14342.8712094,0.0002236,3]
[330808279,1719814239446,-14342.8712094,0.00022369,3]
[330808280,1719814239457,-43028.6136281,0.00022369,3]
[330808281,1719814239467,-14342.8712094,0.0002237,3]
[330808283,1719814239476,-2925.21,0.00022379,4]
[330808285,1719814239485,-4554.99,0.00022379,4]
[330808287,1719814239495,-2751.47,0.00022379,4]
[330808288,1719814239504,-800.0,0.00022384,2]
[330808289,1719814239513,-800.0,0.00022384,2]
[330808290,1719814239524,-2925.21,0.00022389,4]
[330808291,1719814239533,-4554.99,0.00022389,4]
[330808292,1719814239543,-2586.43,0.00022389,4]
[330808293,1719814239552,-2751.47,0.00022389,4]
[330808294,1719814239561,-2797.79,0.00022389,4]
[330808297,1719814239571,-534.0,0.00022389,2]
[330808299,1719814239581,-2440.76,0.00022399,4]
[330808300,1719814239590,-3021.19,0.00022399,4]
[330808301,1719814239599,-2586.43,0.00022399,4]
[330808302,1719814239609,-3087.78,0.00022399,4]
[330808303,1719814239618,-3940.09,0.00022399,4]
[330808304,1719814239628,-2797.79,0.00022399,4]
[330808305,1719814239638,-8645.39503214,0.000224,2]
[330808306,1719814239647,-982.0,0.000224,5]
[330808307,1719814239657,-154.75,0.000224,31]
[330808308,1719814239667,-160.20384158,0.000224,2]
[330808309,1719814239676,-665.48570711,0.000224,2]
[330808310,1719814239686,-2057.91997448,0.000224,2]
[330808311,1719814239695,-800.0,0.00022466,2]
[330808312,1719814239706,-150.5,0.0002247,30]
[330808313,1719814239716,-278.0,0.0002247,30]
[330808314,1719814239726,-882.0,0.00022478,2]
[330808315,1719814239735,-2797.79,0.00022479,4]
[330808316,1719814239745,-150.5,0.0002248,30]
[330808317,1719814239755,-150.5,0.0002248,30]
[330808318,1719814239765,-2229.5343281,0.00022485,2]
[330808319,1719814239775,-1780.7016461,0.00022485,2]
[330808320,1719814239784,-1331.8689641,0.00022485,2]
[330808321,1719814239794,-883.0362821,0.00022485,2]
[330808322,1719814239804,-434.2036001,0.00022485,2]
[330808323,1719814239814,-359.0035509,0.00022485,2]
[330808324,1719814239824,-359.0035509,0.00022485,2]
[330808325,1719814239834,-359.0035509,0.00022485,2]
[330808326,1719814239844,-359.0035509,0.00022485,2]
[330808327,1719814239854,-359.0035509,0.00022485,2]
[330808328,1719814239864,-1243.0471346,0.00022485,2]
[330808329,1719814239874,-993.7771596,0.00022485,2]
[330808330,1719814239883,-744.5071846,0.00022485,2]
[330808331,1719814239893,-495.2372096,0.00022485,2]
[330808332,1719814239903,-245.9672347,0.00022485,2]
[330808333,1719814239913,-3868.0,0.00022488,4]
[330808334,1719814239923,-232.69293554,0.00022489,2]
[330808335,1719814239932,-3868.0,0.00022489,4]
[330808336,1719814239943,-3021.19,0.00022489,4]
[330808337,1719814239953,-2586.43,0.00022489,4]
[330808338,1719814239963,-2586.43,0.00022489,4]
[330808339,1719814239973,-3087.78,0.00022489,4]
[330808340,1719814239983,-4303.24,0.00022489,4]
[330808341,1719814239993,-2797.79,0.00022489,4]
[330808342,1719814240004,-245.76,0.0002249,30]
[330808343,1719814240014,-150.5,0.0002249,30]
[330808344,1719814240024,-150.5,0.0002249,30]
[330808345,1719814240035,-232.69293554,0.0002249,2]
[330808346,1719814240045,-800.0,0.00022493,2]
[330808347,1719814240055,-5853.0,0.00022493,2]
[330808348,1719814240065,-313.80850505,0.00022494,2]
[330808349,1719814240075,-2678.3670101,0.00022494,2]
[330808350,1719814240086,-568.86625472,0.00022494,2]
[330808351,1719814240096,-150.01,0.00022499,2]
[330808352,1719814240106,-1000.0,0.00022499,2]
[330808353,1719814240116,-1000.0,0.00022499,2]
[330808354,1719814240127,-1000.0,0.00022499,2]
[330808355,1719814240137,-1000.0,0.00022499,2]
[330808356,1719814240147,-1000.0,0.00022499,2]
[330808357,1719814240156,-920.50678,0.00022499,2]
[330808358,1719814240166,-2925.21,0.00022499,4]
[330808359,1719814240179,-2925.21,0.00022499,4]
[330808360,1719814240189,-2925.21,0.00022499,4]
[330808361,1719814240200,-2925.21,0.00022499,4]
[330808362,1719814240211,-2925.21,0.00022499,4]
[330808363,1719814240222,-2925.21,0.00022499,4]
[330808365,1719814240232,-2925.21,0.00022499,4]
[330808367,1719814240241,-2925.21,0.00022499,4]
[330808369,1719814240252,-2925.21,0.00022499,4]
[330808371,1719814240262,-2925.21,0.00022499,4]
[330808373,1719814240272,-2925.21,0.00022499,4]
[330808375,1719814240282,-2925.21,0.00022499,4]
[330808377,1719814240291,-2925.21,0.00022499,4]
[330808379,1719814240300,-2925.21,0.00022499,4]
[330808381,1719814240310,-2925.21,0.00022499,4]
[330808383,1719814240320,-2925.21,0.00022499,4]
[330808385,1719814240329,-2925.21,0.00022499,4]
[330808386,1719814240339,-2925.3939347,0.00022499,4]
[330808387,1719814240349,-3868.0,0.00022499,4]
[330808388,1719814240359,-3868.0,0.00022499,4]
[330808389,1719814240368,-3868.0,0.00022499,4]
[330808390,1719814240378,-3868.0,0.00022499,4]
[330808391,1719814240388,-3868.0,0.00022499,4]
[330808392,1719814240397,-3868.0,0.00022499,4]
[330808393,1719814240407,-3868.0,0.00022499,4]
[330808394,1719814240417,-3868.0,0.00022499,4]
[330808395,1719814240426,-3868.0,0.00022499,4]
[330808396,1719814240436,-3868.0,0.00022499,4]
[330808397,1719814240446,-3868.0,0.00022499,4]
[330808398,1719814240455,-3868.0,0.00022499,4]
[330808399,1719814240464,-3868.0,0.00022499,4]
[330808400,1719814240474,-3868.0,0.00022499,4]
[330808401,1719814240483,-4554.99,0.00022499,4]
[330808402,1719814240492,-3868.0,0.00022499,4]
[330808403,1719814240501,-4554.99,0.00022499,4]
[330808404,1719814240510,-4554.99,0.00022499,4]
[330808405,1719814240519,-4554.99,0.00022499,4]
[330808406,1719814240528,-3868.05328946,0.00022499,4]
[330808407,1719814240536,-4554.99,0.00022499,4]
[330808408,1719814240545,-4554.99,0.00022499,4]
[330808409,1719814240554,-4554.99,0.00022499,4]
[330808410,1719814240563,-4554.99,0.00022499,4]
[330808411,1719814240572,-4554.99,0.00022499,4]
[330808412,1719814240581,-4554.99,0.00022499,4]
[330808413,1719814240590,-4554.99,0.00022499,4]
[330808414,1719814240599,-4554.99,0.00022499,4]
[330808415,1719814240608,-4554.99,0.00022499,4]
[330808416,1719814240617,-4554.99,0.00022499,4]
[330808417,1719814240626,-4554.99,0.00022499,4]
[330808418,1719814240635,-4554.99,0.00022499,4]
[330808419,1719814240645,-4554.99,0.00022499,4]
[330808420,1719814240654,-4555.21,0.00022499,4]
[330808421,1719814240663,-2440.76,0.00022499,4]
[330808422,1719814240672,-2440.76,0.00022499,4]
[330808423,1719814240681,-2440.76,0.00022499,4]
[330808424,1719814240691,-2440.76,0.00022499,4]
[330808425,1719814240700,-2440.76,0.00022499,4]
[330808426,1719814240710,-2440.76,0.00022499,4]
[330808427,1719814240719,-2440.76,0.00022499,4]
[330808428,1719814240728,-2440.76,0.00022499,4]
[330808429,1719814240737,-2440.76,0.00022499,4]
[330808430,1719814240747,-2440.76,0.00022499,4]
[330808431,1719814240756,-2440.76,0.00022499,4]
[330808432,1719814240765,-2440.76,0.00022499,4]
[330808433,1719814240774,-2440.76,0.00022499,4]
[330808434,1719814240784,-2440.76,0.00022499,4]
[330808435,1719814240793,-2440.76,0.00022499,4]
[330808436,1719814240803,-2440.76,0.00022499,4]
[330808437,1719814240812,-2440.76,0.00022499,4]
[330808438,1719814240821,-2440.76,0.00022499,4]
[330808439,1719814240830,-2440.76,0.00022499,4]
[330808440,1719814240839,-2440.76,0.00022499,4]
[330808441,1719814240848,-2440.76,0.00022499,4]
[330808442,1719814240858,-2440.76,0.00022499,4]
[330808443,1719814240867,-2440.88837076,0.00022499,4]
[330808444,1719814240876,-3021.19,0.00022499,4]
[330808445,1719814240885,-3021.19,0.00022499,4]
[330808446,1719814240895,-3021.19,0.00022499,4]
[330808447,1719814240904,-3021.19,0.00022499,4]
[330808448,1719814240913,-3021.19,0.00022499,4]
[330808449,1719814240923,-3021.19,0.00022499,4]
[330808450,1719814240932,-3021.19,0.00022499,4]
[330808451,1719814240942,-3021.19,0.00022499,4]
[330808452,1719814240951,-3021.19,0.00022499,4]
[330808453,1719814240960,-3021.19,0.00022499,4]
[330808454,1719814240970,-3021.19,0.00022499,4]
[330808455,1719814240980,-3021.19,0.00022499,4]
[330808456,1719814240990,-3021.19,0.00022499,4]
[330808457,1719814241000,-2586.43,0.00022499,4]
[330808458,1719814241009,-2586.43,0.00022499,4]
[330808459,1719814241019,-3021.19,0.00022499,4]
[330808460,1719814241028,-2586.43,0.00022499,4]
[330808461,1719814241037,-3021.19,0.00022499,4]
[330808462,1719814241047,-2586.43,0.00022499,4]
[330808463,1719814241056,-2751.47,0.00022499,4]
[330808464,1719814241066,-2751.47,0.00022499,4]
[330808465,1719814241075,-3021.19,0.00022499,4]
[330808466,1719814241084,-2586.43,0.00022499,4]
[330808467,1719814241094,-2751.47,0.00022499,4]
[330808468,1719814241103,-2751.47,0.00022499,4]
[330808469,1719814241113,-3021.19,0.00022499,4]
[330808470,1719814241123,-2586.43,0.00022499,4]
[330808471,1719814241131,-2751.47,0.00022499,4]
[330808472,1719814241142,-2751.47,0.00022499,4]
[330808473,1719814241152,-2751.47,0.00022499,4]
[330808474,1719814241161,-3021.19,0.00022499,4]
[330808475,1719814241171,-2751.47,0.00022499,4]
[330808476,1719814241185,-2751.47,0.00022499,4]
[330808477,1719814241194,-2586.43,0.00022499,4]
[330808478,1719814241203,-2751.47,0.00022499,4]
[330808479,1719814241212,-3021.19,0.00022499,4]
[330808480,1719814241222,-2751.47,0.00022499,4]
[330808481,1719814241231,-2586.43,0.00022499,4]
[330808482,1719814241242,-2751.47,0.00022499,4]
[330808483,1719814241251,-3021.33,0.00022499,4]
[330808484,1719814241262,-2751.47,0.00022499,4]
[330808485,1719814241271,-2586.43,0.00022499,4]
[330808486,1719814241279,-2751.47,0.00022499,4]
[330808487,1719814241289,-2586.43,0.00022499,4]
[330808488,1719814241299,-2751.47,0.00022499,4]
[330808489,1719814241309,-2586.43,0.00022499,4]
[330808490,1719814241318,-2751.47,0.00022499,4]
[330808491,1719814241327,-2586.43,0.00022499,4]
[330808492,1719814241336,-2586.43,0.00022499,4]
[330808493,1719814241345,-2751.47,0.00022499,4]
[330808494,1719814241355,-2751.59,0.00022499,4]
[330808495,1719814241364,-2586.43,0.00022499,4]
[330808496,1719814241373,-2586.43,0.00022499,4]
[330808497,1719814241382,-2586.43,0.00022499,4]
[330808498,1719814241391,-2586.43,0.00022499,4]
[330808499,1719814241400,-3087.78,0.00022499,4]
[330808500,1719814241410,-3087.78,0.00022499,4]
[330808501,1719814241419,-3087.78,0.00022499,4]
[330808502,1719814241428,-3087.78,0.00022499,4]
[330808503,1719814241437,-3087.78,0.00022499,4]
[330808504,1719814241446,-3087.78,0.00022499,4]